[Event "Early-Titled-Tuesday-Blitz-April-23-2024"]
[Site "Chess.com"]
[Date "2024.04.23"]
[Round "8"]
[White "whiteglovethief"]
[Black "NovakRatko"]
[Result "1-0"]
[WhiteElo "2573"]
[BlackElo "2383"]
[TimeControl "180+1"]
[EndTime "9:31:44 PDT"]
[Termination "whiteglovethief won on time"]

1. d4 {[%clk 0:03:00.9]} 1... d5 {[%clk 0:02:59.7]} 2. c4 {[%clk 0:03:01]} 2...
c5 {[%clk 0:02:59.8]} 3. dxc5 {[%clk 0:02:59.4]} 3... d4 {[%clk 0:02:59.4]} 4.
Nf3 {[%clk 0:02:58.5]} 4... Nc6 {[%clk 0:02:59.3]} 5. e3 {[%clk 0:02:52]} 5...
e5 {[%clk 0:02:58.8]} 6. exd4 {[%clk 0:02:51.9]} 6... exd4 {[%clk 0:02:58.8]} 7.
Bd3 {[%clk 0:02:51.4]} 7... Bxc5 {[%clk 0:02:57.3]} 8. O-O {[%clk 0:02:51.4]}
8... Nge7 {[%clk 0:02:48.7]} 9. a3 {[%clk 0:02:50.6]} 9... a5 {[%clk 0:02:47.6]}
10. Nbd2 {[%clk 0:02:51.2]} 10... Bg4 {[%clk 0:02:32.3]} 11. Ne4 {[%clk
0:02:48.3]} 11... b6 {[%clk 0:02:31.6]} 12. Bf4 {[%clk 0:02:41.8]} 12... f6
{[%clk 0:02:24.9]} 13. h3 {[%clk 0:02:22.2]} 13... Bh5 {[%clk 0:02:24.2]} 14.
Ng3 {[%clk 0:02:21.6]} 14... Bf7 {[%clk 0:02:23.1]} 15. Qc2 {[%clk 0:02:14.4]}
15... Ng6 {[%clk 0:02:14.3]} 16. Rfe1+ {[%clk 0:02:13.4]} 16... Nce7 {[%clk
0:02:14]} 17. Nh5 {[%clk 0:01:56]} 17... O-O {[%clk 0:02:10.3]} 18. Bg3 {[%clk
0:01:46.3]} 18... Re8 {[%clk 0:02:08]} 19. Nf4 {[%clk 0:01:43.5]} 19... Nf8
{[%clk 0:02:07.2]} 20. Rad1 {[%clk 0:01:32.9]} 20... Qd7 {[%clk 0:01:57.6]} 21.
Qd2 {[%clk 0:01:22.5]} 21... a4 {[%clk 0:01:53.7]} 22. Bc2 {[%clk 0:01:17.5]}
22... Nf5 {[%clk 0:01:28.4]} 23. Rxe8 {[%clk 0:01:13]} 23... Bxe8 {[%clk
0:01:27]} 24. Nd5 {[%clk 0:01:10.3]} 24... Nxg3 {[%clk 0:01:22]} 25. fxg3 {[%clk
0:01:11.2]} 25... Bf7 {[%clk 0:01:16.4]} 26. Kh2 {[%clk 0:01:08.9]} 26... Bxd5
{[%clk 0:01:08.9]} 27. cxd5 {[%clk 0:01:09.8]} 27... Qxd5 {[%clk 0:01:09]} 28.
Nxd4 {[%clk 0:01:01.3]} 28... Rd8 {[%clk 0:00:21.5]} 29. Nf3 {[%clk 0:00:56.9]}
29... Qxd2 {[%clk 0:00:19.8]} 30. Rxd2 {[%clk 0:00:57.8]} 30... Rxd2 {[%clk
0:00:19.8]} 31. Nxd2 {[%clk 0:00:58.5]} 31... b5 {[%clk 0:00:16.1]} 32. Bd3
{[%clk 0:00:58.4]} 32... Bd4 {[%clk 0:00:16.6]} 33. Bxb5 {[%clk 0:00:58.3]}
33... Bxb2 {[%clk 0:00:17]} 34. Nc4 {[%clk 0:00:57.8]} 34... Bc1 {[%clk
0:00:17.1]} 35. Bxa4 {[%clk 0:00:57.8]} 35... Ne6 {[%clk 0:00:14.8]} 36. Bb3
{[%clk 0:00:57.3]} 36... Nc5 {[%clk 0:00:13.7]} 37. Bc2 {[%clk 0:00:53.6]} 37...
g6 {[%clk 0:00:12.7]} 38. a4 {[%clk 0:00:53.7]} 38... Kf7 {[%clk 0:00:06]} 39.
a5 {[%clk 0:00:53.8]} 39... Ke6 {[%clk 0:00:05.9]} 40. Bd3 {[%clk 0:00:44.7]}
40... Nxd3 {[%clk 0:00:01.2]} 41. a6 {[%clk 0:00:44.6]} 1-0

[Event "Early-Titled-Tuesday-Blitz-April-23-2024"]
[Site "Chess.com"]
[Date "2024.04.23"]
[Round "8"]
[White "m_ezat"]
[Black "Kiborg95"]
[Result "1-0"]
[WhiteElo "2640"]
[BlackElo "2827"]
[TimeControl "180+1"]
[EndTime "9:31:46 PDT"]
[Termination "m_ezat won by resignation"]

1. d4 {[%clk 0:02:42]} 1... d6 {[%clk 0:03:00.9]} 2. c4 {[%clk 0:02:39.6]} 2...
e5 {[%clk 0:02:57.7]} 3. Nf3 {[%clk 0:02:38.6]} 3... e4 {[%clk 0:02:56.9]} 4.
Ng5 {[%clk 0:02:38.6]} 4... f5 {[%clk 0:02:57.5]} 5. h4 {[%clk 0:02:38]} 5...
Be7 {[%clk 0:02:56.1]} 6. Nh3 {[%clk 0:02:37.9]} 6... Bxh4 {[%clk 0:02:45.6]} 7.
Nf4 {[%clk 0:02:37.5]} 7... Nh6 {[%clk 0:02:46]} 8. e3 {[%clk 0:02:26.6]} 8...
Nf7 {[%clk 0:02:25]} 9. Qh5 {[%clk 0:02:15.9]} 9... Be7 {[%clk 0:02:09.2]} 10.
Nc3 {[%clk 0:02:14.7]} 10... c6 {[%clk 0:02:06]} 11. g4 {[%clk 0:02:12.5]} 11...
g6 {[%clk 0:02:03.2]} 12. Qh2 {[%clk 0:02:06.4]} 12... Na6 {[%clk 0:02:02.7]}
13. a3 {[%clk 0:02:05.2]} 13... Nc7 {[%clk 0:02:01.9]} 14. gxf5 {[%clk
0:02:04.5]} 14... Bxf5 {[%clk 0:02:02.8]} 15. Bh3 {[%clk 0:02:04.1]} 15... Qd7
{[%clk 0:01:59.5]} 16. Nxe4 {[%clk 0:02:01.3]} 16... O-O-O {[%clk 0:01:58.4]}
17. Ng3 {[%clk 0:01:46.2]} 17... Bxh3 {[%clk 0:01:50.5]} 18. Qxh3 {[%clk
0:01:47.1]} 18... Bg5 {[%clk 0:01:36.8]} 19. Nd3 {[%clk 0:01:40.6]} 19... Ne6
{[%clk 0:01:20.1]} 20. Ne4 {[%clk 0:01:40.3]} 20... Be7 {[%clk 0:01:20]} 21. d5
{[%clk 0:01:34.2]} 21... cxd5 {[%clk 0:01:11.4]} 22. cxd5 {[%clk 0:01:33.8]}
22... Nc5 {[%clk 0:01:12.2]} 23. Ndxc5 {[%clk 0:01:21.5]} 23... dxc5 {[%clk
0:01:13.1]} 24. Nc3 {[%clk 0:01:18.5]} 24... Bf6 {[%clk 0:01:07.6]} 25. e4
{[%clk 0:01:17.6]} 25... Qxh3 {[%clk 0:01:03.8]} 26. Rxh3 {[%clk 0:01:16.9]}
26... Rhe8 {[%clk 0:00:58.8]} 27. Kf1 {[%clk 0:01:11.1]} 27... Bxc3 {[%clk
0:00:53.2]} 28. Rxc3 {[%clk 0:01:10.7]} 28... Rxe4 {[%clk 0:00:47.2]} 29. Rxc5+
{[%clk 0:01:10.6]} 29... Kd7 {[%clk 0:00:47.9]} 30. Be3 {[%clk 0:01:10.1]} 30...
b6 {[%clk 0:00:43.2]} 31. Rc6 {[%clk 0:00:57.7]} 31... Ne5 {[%clk 0:00:40.3]}
32. Rc3 {[%clk 0:00:55.2]} 32... Rf8 {[%clk 0:00:37.4]} 33. Rac1 {[%clk
0:00:53.4]} 33... Kd6 {[%clk 0:00:37.6]} 34. Bh6 {[%clk 0:00:36]} 34... Rf7
{[%clk 0:00:31.7]} 35. Rc8 {[%clk 0:00:34.6]} 35... Ng4 {[%clk 0:00:18]} 36.
Bf8+ {[%clk 0:00:33.5]} 36... Kxd5 {[%clk 0:00:14.3]} 37. Rd1+ {[%clk
0:00:32.2]} 37... Ke5 {[%clk 0:00:13.6]} 38. Re8+ {[%clk 0:00:31.3]} 38... Kf4
{[%clk 0:00:14.2]} 39. Bd6+ {[%clk 0:00:31.3]} 39... Kf3 {[%clk 0:00:14.6]} 40.
Rd3+ {[%clk 0:00:31.5]} 1-0

[Event "Early-Titled-Tuesday-Blitz-April-23-2024"]
[Site "Chess.com"]
[Date "2024.04.23"]
[Round "8"]
[White "kacperkarwowski"]
[Black "Sadykov_Ramil"]
[Result "1-0"]
[WhiteElo "2518"]
[BlackElo "2616"]
[TimeControl "180+1"]
[EndTime "9:31:48 PDT"]
[Termination "kacperkarwowski won on time"]

1. e4 {[%clk 0:03:00.9]} 1... d5 {[%clk 0:02:57.1]} 2. exd5 {[%clk 0:03:00.7]}
2... Qxd5 {[%clk 0:02:58]} 3. Nc3 {[%clk 0:02:59.7]} 3... Qe5+ {[%clk
0:02:58.6]} 4. Be2 {[%clk 0:02:57.3]} 4... Bg4 {[%clk 0:02:58.4]} 5. d4 {[%clk
0:02:57.1]} 5... Bxe2 {[%clk 0:02:58.2]} 6. Ngxe2 {[%clk 0:02:54.1]} 6... Qa5
{[%clk 0:02:58.3]} 7. O-O {[%clk 0:02:53]} 7... Nc6 {[%clk 0:02:56.9]} 8. Bf4
{[%clk 0:02:22.3]} 8... O-O-O {[%clk 0:02:54.6]} 9. Qd3 {[%clk 0:02:09.9]} 9...
g6 {[%clk 0:02:51]} 10. d5 {[%clk 0:01:49.7]} 10... Nf6 {[%clk 0:02:18.4]} 11.
Qh3+ {[%clk 0:01:48.3]} 11... Kb8 {[%clk 0:01:47.2]} 12. dxc6 {[%clk 0:01:48.4]}
12... bxc6 {[%clk 0:01:48.1]} 13. b4 {[%clk 0:01:44.5]} 13... Qf5 {[%clk
0:01:29.4]} 14. Qxf5 {[%clk 0:01:36.1]} 14... gxf5 {[%clk 0:01:30.3]} 15. Rad1
{[%clk 0:01:31.9]} 15... Bg7 {[%clk 0:01:30.1]} 16. Be5 {[%clk 0:01:29.4]} 16...
Kb7 {[%clk 0:01:18]} 17. Nd4 {[%clk 0:01:29.5]} 17... e6 {[%clk 0:01:17.8]} 18.
Nb3 {[%clk 0:01:29.3]} 18... Rhg8 {[%clk 0:01:05.2]} 19. Na5+ {[%clk 0:01:29]}
19... Kb6 {[%clk 0:01:01.8]} 20. Bd4+ {[%clk 0:01:28.3]} 20... Rxd4 {[%clk
0:00:56.3]} 21. Rxd4 {[%clk 0:01:29.2]} 21... Ne4 {[%clk 0:00:56.7]} 22. Rxe4
{[%clk 0:01:01.1]} 22... fxe4 {[%clk 0:00:55.3]} 23. Nxe4 {[%clk 0:01:02]} 23...
Rd8 {[%clk 0:00:51.7]} 24. a3 {[%clk 0:00:58.7]} 24... Kb5 {[%clk 0:00:39]} 25.
Nc5 {[%clk 0:00:54.9]} 25... Rd2 {[%clk 0:00:25.5]} 26. c4+ {[%clk 0:00:51.2]}
26... Kb6 {[%clk 0:00:25.4]} 27. Na4+ {[%clk 0:00:51.6]} 27... Ka6 {[%clk
0:00:23]} 28. Nxc6 {[%clk 0:00:52.2]} 28... Ra2 {[%clk 0:00:17.6]} 29. b5+
{[%clk 0:00:46.6]} 29... Kb7 {[%clk 0:00:17.3]} 30. Nc5+ {[%clk 0:00:46.8]}
30... Kc8 {[%clk 0:00:12.9]} 31. Rd1 {[%clk 0:00:43.9]} 31... Bf6 {[%clk
0:00:12]} 32. Ne4 {[%clk 0:00:37.6]} 32... Ra1 {[%clk 0:00:05.4]} 33. Rxa1
{[%clk 0:00:36.8]} 33... Bxa1 {[%clk 0:00:06.3]} 34. Nxa7+ {[%clk 0:00:36.6]}
34... Kb7 {[%clk 0:00:04.8]} 35. Nc6 {[%clk 0:00:37.5]} 35... Kb6 {[%clk
0:00:05.3]} 36. a4 {[%clk 0:00:37.1]} 36... f5 {[%clk 0:00:04.4]} 37. c5+ {[%clk
0:00:37.4]} 37... Kb7 {[%clk 0:00:02.7]} 38. Nd2 {[%clk 0:00:37]} 38... Bc3
{[%clk 0:00:01.9]} 39. Nb3 {[%clk 0:00:37.9]} 39... Kc8 {[%clk 0:00:01.5]} 40.
a5 {[%clk 0:00:37.2]} 40... Bb4 {[%clk 0:00:01.1]} 41. a6 {[%clk 0:00:37.5]} 1-0

[Event "Early-Titled-Tuesday-Blitz-April-23-2024"]
[Site "Chess.com"]
[Date "2024.04.23"]
[Round "8"]
[White "PeshkaCh"]
[Black "Susal_De_Silva"]
[Result "1-0"]
[WhiteElo "2873"]
[BlackElo "2690"]
[TimeControl "180+1"]
[EndTime "9:31:49 PDT"]
[Termination "PeshkaCh won by resignation"]

1. Nf3 {[%clk 0:03:00.9]} 1... Nf6 {[%clk 0:02:57.9]} 2. d4 {[%clk 0:03:00.7]}
2... e6 {[%clk 0:02:57.9]} 3. c4 {[%clk 0:03:00.8]} 3... b6 {[%clk 0:02:57.2]}
4. g4 {[%clk 0:02:37.4]} 4... Nxg4 {[%clk 0:02:55.1]} 5. e4 {[%clk 0:02:37.5]}
5... Bb7 {[%clk 0:02:52.8]} 6. Nc3 {[%clk 0:02:37.2]} 6... Nf6 {[%clk
0:02:51.1]} 7. e5 {[%clk 0:02:36.2]} 7... Ne4 {[%clk 0:02:50.4]} 8. Nxe4 {[%clk
0:02:18.9]} 8... Bxe4 {[%clk 0:02:49.5]} 9. Qe2 {[%clk 0:02:18.6]} 9... Bb4+
{[%clk 0:02:48.3]} 10. Bd2 {[%clk 0:02:18.7]} 10... Bxd2+ {[%clk 0:02:47.5]} 11.
Kxd2 {[%clk 0:02:19]} 11... Bb7 {[%clk 0:02:41.2]} 12. Rg1 {[%clk 0:02:16.8]}
12... g6 {[%clk 0:02:27.1]} 13. Bg2 {[%clk 0:02:15]} 13... Qe7 {[%clk
0:02:27.1]} 14. a3 {[%clk 0:02:13.6]} 14... Nc6 {[%clk 0:02:26.8]} 15. d5 {[%clk
0:02:12]} 15... Na5 {[%clk 0:02:25.4]} 16. Nd4 {[%clk 0:01:13.8]} 16... c5
{[%clk 0:02:03.5]} 17. Nb5 {[%clk 0:01:01.5]} 17... Nb3+ {[%clk 0:02:02.2]} 18.
Kc3 {[%clk 0:00:58.2]} 18... Nxa1 {[%clk 0:02:00.3]} 19. Nd6+ {[%clk 0:00:39.9]}
19... Kf8 {[%clk 0:01:53.6]} 20. Qe3 {[%clk 0:00:38.7]} 20... exd5 {[%clk
0:01:36]} 21. cxd5 {[%clk 0:00:38]} 21... Qh4 {[%clk 0:01:22.2]} 22. Nxb7 {[%clk
0:00:23.7]} 22... Qd4+ {[%clk 0:01:22]} 23. Qxd4 {[%clk 0:00:23.7]} 23... cxd4+
{[%clk 0:01:22.9]} 24. Kd3 {[%clk 0:00:15.6]} 24... Nb3 {[%clk 0:01:21.4]} 25.
Nd6 {[%clk 0:00:15.4]} 25... Kg7 {[%clk 0:01:15]} 26. Kc4 {[%clk 0:00:14.2]}
26... Nc5 {[%clk 0:01:10.1]} 27. b4 {[%clk 0:00:13.1]} 27... Na6 {[%clk
0:01:06.2]} 28. Kxd4 {[%clk 0:00:13.5]} 28... Nc7 {[%clk 0:00:54.8]} 29. Bh3
{[%clk 0:00:14]} 29... Ne8 {[%clk 0:00:50.4]} 30. Nxe8+ {[%clk 0:00:10]} 30...
Rhxe8 {[%clk 0:00:49.1]} 31. Bxd7 {[%clk 0:00:10.9]} 31... Re7 {[%clk
0:00:39.7]} 32. Bc6 {[%clk 0:00:08.7]} 32... Rd8 {[%clk 0:00:40.2]} 33. f4
{[%clk 0:00:08.4]} 33... f6 {[%clk 0:00:35.8]} 34. d6 {[%clk 0:00:07]} 34... Re6
{[%clk 0:00:31.5]} 35. Kd5 {[%clk 0:00:07.4]} 35... Ree8 {[%clk 0:00:32.1]} 36.
Bxe8 {[%clk 0:00:07.4]} 1-0

[Event "Early-Titled-Tuesday-Blitz-April-23-2024"]
[Site "Chess.com"]
[Date "2024.04.23"]
[Round "8"]
[White "Herzog2012"]
[Black "giovannibrandao7"]
[Result "0-1"]
[WhiteElo "2540"]
[BlackElo "2352"]
[TimeControl "180+1"]
[EndTime "9:31:50 PDT"]
[Termination "giovannibrandao7 won on time"]

1. e4 {[%clk 0:03:00.9]} 1... c5 {[%clk 0:02:59.5]} 2. Nf3 {[%clk 0:03:01]} 2...
d6 {[%clk 0:03:00]} 3. d4 {[%clk 0:03:00.5]} 3... cxd4 {[%clk 0:03:00.9]} 4.
Nxd4 {[%clk 0:03:00.7]} 4... Nf6 {[%clk 0:03:01.3]} 5. Nc3 {[%clk 0:03:01.3]}
5... a6 {[%clk 0:03:01.9]} 6. Bg5 {[%clk 0:03:01.3]} 6... e6 {[%clk 0:03:02.4]}
7. f4 {[%clk 0:03:01]} 7... Be7 {[%clk 0:03:03]} 8. Qf3 {[%clk 0:03:00.4]} 8...
Qc7 {[%clk 0:03:03.6]} 9. O-O-O {[%clk 0:03:00.4]} 9... h6 {[%clk 0:03:04.1]}
10. Bh4 {[%clk 0:02:48.1]} 10... Nbd7 {[%clk 0:03:01.9]} 11. Be2 {[%clk
0:02:39.2]} 11... b5 {[%clk 0:03:00]} 12. Qg3 {[%clk 0:02:30.6]} 12... b4 {[%clk
0:02:42.5]} 13. Nd5 {[%clk 0:02:18.8]} 13... exd5 {[%clk 0:01:20.1]} 14. Nf5
{[%clk 0:02:13.5]} 14... Bf8 {[%clk 0:01:04.6]} 15. Bf3 {[%clk 0:01:40.3]} 15...
g6 {[%clk 0:00:42.2]} 16. e5 {[%clk 0:01:21.5]} 16... dxe5 {[%clk 0:00:31.2]}
17. fxe5 {[%clk 0:01:05.6]} 17... gxf5 {[%clk 0:00:24.2]} 18. Qf4 {[%clk
0:00:32.9]} 18... Ne4 {[%clk 0:00:19.6]} 19. Rxd5 {[%clk 0:00:27.1]} 19... Bb7
{[%clk 0:00:16.1]} 20. Rdd1 {[%clk 0:00:09.5]} 20... Qxe5 {[%clk 0:00:10.9]} 21.
Qe3 {[%clk 0:00:09.1]} 21... Bg7 {[%clk 0:00:09.8]} 22. c3 {[%clk 0:00:06.2]}
22... bxc3 {[%clk 0:00:08.8]} 23. Qd3 {[%clk 0:00:06.7]} 23... cxb2+ {[%clk
0:00:08.4]} 24. Kb1 {[%clk 0:00:03.8]} 24... Nc3+ {[%clk 0:00:08.1]} 25. Kc2
{[%clk 0:00:04.1]} 25... Nxd1 {[%clk 0:00:07.9]} 26. Re1 {[%clk 0:00:04.8]}
26... b1=Q+ {[%clk 0:00:06.7]} 27. Kxb1 {[%clk 0:00:04.4]} 27... Be4 {[%clk
0:00:06.5]} 0-1

[Event "Early-Titled-Tuesday-Blitz-April-23-2024"]
[Site "Chess.com"]
[Date "2024.04.23"]
[Round "8"]
[White "briesmas"]
[Black "Kostukov_Alex"]
[Result "0-1"]
[WhiteElo "2195"]
[BlackElo "2345"]
[TimeControl "180+1"]
[EndTime "9:31:51 PDT"]
[Termination "Kostukov_Alex won on time"]

1. e4 {[%clk 0:02:58.2]} 1... c5 {[%clk 0:02:59.1]} 2. Nf3 {[%clk 0:02:58.1]}
2... g6 {[%clk 0:02:59.2]} 3. d4 {[%clk 0:02:58.3]} 3... cxd4 {[%clk 0:02:57]}
4. Nxd4 {[%clk 0:02:59.2]} 4... Bg7 {[%clk 0:02:57.1]} 5. Nc3 {[%clk 0:02:59.9]}
5... Nc6 {[%clk 0:02:57.4]} 6. Be3 {[%clk 0:03:00.1]} 6... Nf6 {[%clk
0:02:57.3]} 7. Bc4 {[%clk 0:03:00.2]} 7... Qa5 {[%clk 0:02:56.4]} 8. O-O {[%clk
0:02:57.8]} 8... Ng4 {[%clk 0:02:56.3]} 9. Nxc6 {[%clk 0:02:34.2]} 9... dxc6
{[%clk 0:02:55.3]} 10. Bd4 {[%clk 0:02:09.4]} 10... e5 {[%clk 0:02:53.7]} 11.
Be3 {[%clk 0:02:09.4]} 11... O-O {[%clk 0:02:38.5]} 12. Bb3 {[%clk 0:01:56.5]}
12... Nxe3 {[%clk 0:02:36.5]} 13. fxe3 {[%clk 0:01:56.3]} 13... Qc7 {[%clk
0:02:25.1]} 14. Qf3 {[%clk 0:01:52.5]} 14... Qe7 {[%clk 0:02:22.2]} 15. Rad1
{[%clk 0:01:41.7]} 15... Be6 {[%clk 0:02:19.6]} 16. Rd3 {[%clk 0:01:36.3]} 16...
Rae8 {[%clk 0:01:43.8]} 17. Rfd1 {[%clk 0:01:32]} 17... Rd8 {[%clk 0:01:26.8]}
18. Bxe6 {[%clk 0:01:25.8]} 18... fxe6 {[%clk 0:01:22.7]} 19. Qg4 {[%clk
0:01:20.5]} 19... Rxd3 {[%clk 0:01:07.8]} 20. Rxd3 {[%clk 0:01:20.4]} 20... Qf6
{[%clk 0:01:03]} 21. h3 {[%clk 0:01:09.3]} 21... Bh6 {[%clk 0:00:58]} 22. Kh2
{[%clk 0:01:06]} 22... Kh8 {[%clk 0:00:52.8]} 23. Qe2 {[%clk 0:00:47.1]} 23...
Qf2 {[%clk 0:00:46.4]} 24. Qxf2 {[%clk 0:00:25.6]} 24... Rxf2 {[%clk 0:00:44.3]}
25. Rd8+ {[%clk 0:00:22.5]} 25... Kg7 {[%clk 0:00:43.5]} 26. Rd7+ {[%clk
0:00:22.8]} 26... Kg8 {[%clk 0:00:43.2]} 27. Rxb7 {[%clk 0:00:22.2]} 27... Bxe3
{[%clk 0:00:41.6]} 28. Kg3 {[%clk 0:00:12.5]} 28... Rxc2 {[%clk 0:00:39.6]} 29.
Kf3 {[%clk 0:00:12.1]} 29... Bd4 {[%clk 0:00:37.9]} 30. Ne2 {[%clk 0:00:07.1]}
30... Rxb2 {[%clk 0:00:35.8]} 31. Rd7 {[%clk 0:00:06.6]} 31... Rxa2 {[%clk
0:00:31.2]} 32. Rd6 {[%clk 0:00:05.2]} 32... c5 {[%clk 0:00:29]} 33. Rxe6 {[%clk
0:00:05.5]} 33... c4 {[%clk 0:00:29.4]} 34. Rd6 {[%clk 0:00:03.3]} 34... Ra3+
{[%clk 0:00:19.6]} 0-1

[Event "Early-Titled-Tuesday-Blitz-April-23-2024"]
[Site "Chess.com"]
[Date "2024.04.23"]
[Round "8"]
[White "MatyChess1"]
[Black "alexrustemov"]
[Result "1-0"]
[WhiteElo "2707"]
[BlackElo "2861"]
[TimeControl "180+1"]
[EndTime "9:31:56 PDT"]
[Termination "MatyChess1 won on time"]

1. Nf3 {[%clk 0:03:00.9]} 1... d5 {[%clk 0:02:57.2]} 2. g3 {[%clk 0:03:00.3]}
2... c6 {[%clk 0:02:56.8]} 3. Bg2 {[%clk 0:02:59.1]} 3... Bf5 {[%clk 0:02:57.1]}
4. d3 {[%clk 0:02:58.5]} 4... e6 {[%clk 0:02:57.3]} 5. O-O {[%clk 0:02:58.7]}
5... Nf6 {[%clk 0:02:56.7]} 6. c4 {[%clk 0:02:59.3]} 6... dxc4 {[%clk
0:02:56.4]} 7. dxc4 {[%clk 0:02:59]} 7... Qxd1 {[%clk 0:02:57]} 8. Rxd1 {[%clk
0:02:59.9]} 8... Bc2 {[%clk 0:02:57]} 9. Rd2 {[%clk 0:02:55]} 9... Bg6 {[%clk
0:02:56.1]} 10. Rd1 {[%clk 0:02:55.4]} 10... a5 {[%clk 0:02:52.2]} 11. Nc3
{[%clk 0:02:53.7]} 11... Nbd7 {[%clk 0:02:44.7]} 12. Nd4 {[%clk 0:02:34.4]}
12... Nc5 {[%clk 0:02:37.3]} 13. Nxc6 {[%clk 0:02:27.5]} 13... Nfd7 {[%clk
0:02:21.3]} 14. Nb5 {[%clk 0:02:16.2]} 14... Rc8 {[%clk 0:01:31.7]} 15. Nxa5
{[%clk 0:02:06.7]} 15... b6 {[%clk 0:01:22.2]} 16. Nc6 {[%clk 0:01:25.2]} 16...
Be4 {[%clk 0:01:16]} 17. Nca7 {[%clk 0:01:13.5]} 17... Rb8 {[%clk 0:01:04.3]}
18. Nc7+ {[%clk 0:01:09]} 18... Kd8 {[%clk 0:00:57.7]} 19. Ncb5 {[%clk
0:01:09.5]} 19... Rb7 {[%clk 0:00:36.3]} 20. Nc6+ {[%clk 0:00:54]} 20... Kc8
{[%clk 0:00:31.5]} 21. Bf4 {[%clk 0:00:47.3]} 21... f6 {[%clk 0:00:29.7]} 22.
Nba7+ {[%clk 0:00:45.1]} 22... Rxa7 {[%clk 0:00:23.4]} 23. Nxa7+ {[%clk
0:00:46]} 23... Kb7 {[%clk 0:00:24]} 24. Nb5 {[%clk 0:00:45.1]} 24... Kc8 {[%clk
0:00:17.6]} 25. Na7+ {[%clk 0:00:34.5]} 25... Kb7 {[%clk 0:00:17.3]} 26. Bxe4+
{[%clk 0:00:29.5]} 26... Kxa7 {[%clk 0:00:17.3]} 27. Bg2 {[%clk 0:00:30.1]}
27... e5 {[%clk 0:00:17.4]} 28. Be3 {[%clk 0:00:30.8]} 28... Nb8 {[%clk
0:00:13.2]} 29. Rd8 {[%clk 0:00:30.5]} 29... g6 {[%clk 0:00:11.1]} 30. Rad1
{[%clk 0:00:23]} 30... Bg7 {[%clk 0:00:10.7]} 31. Rxh8 {[%clk 0:00:23]} 31...
Bxh8 {[%clk 0:00:11.6]} 32. b4 {[%clk 0:00:23]} 32... Nca6 {[%clk 0:00:10.1]}
33. a3 {[%clk 0:00:20.5]} 33... f5 {[%clk 0:00:10.2]} 34. Rd8 {[%clk 0:00:16.7]}
34... Bf6 {[%clk 0:00:09.5]} 35. Rf8 {[%clk 0:00:17.2]} 35... Be7 {[%clk
0:00:03.3]} 36. Rf7 {[%clk 0:00:17.7]} 1-0

[Event "Early-Titled-Tuesday-Blitz-April-23-2024"]
[Site "Chess.com"]
[Date "2024.04.23"]
[Round "8"]
[White "ViIIagra"]
[Black "TanitoluwaAps116"]
[Result "1-0"]
[WhiteElo "2935"]
[BlackElo "2785"]
[TimeControl "180+1"]
[EndTime "9:31:57 PDT"]
[Termination "ViIIagra won by resignation"]

1. g3 {[%clk 0:02:58]} 1... d5 {[%clk 0:02:46.5]} 2. Bg2 {[%clk 0:02:57.6]} 2...
Nf6 {[%clk 0:02:47.4]} 3. d3 {[%clk 0:02:57.4]} 3... e5 {[%clk 0:02:43.1]} 4.
Nf3 {[%clk 0:02:57.2]} 4... Nc6 {[%clk 0:02:39.6]} 5. O-O {[%clk 0:02:56.6]}
5... Bc5 {[%clk 0:02:37]} 6. Nxe5 {[%clk 0:02:53.5]} 6... Bxf2+ {[%clk
0:02:03.4]} 7. Rxf2 {[%clk 0:02:53.1]} 7... Nxe5 {[%clk 0:02:04.3]} 8. h3 {[%clk
0:02:46.1]} 8... Be6 {[%clk 0:01:57.1]} 9. d4 {[%clk 0:01:52.2]} 9... Ned7
{[%clk 0:01:50]} 10. Nc3 {[%clk 0:01:52.1]} 10... O-O {[%clk 0:01:47.5]} 11. g4
{[%clk 0:01:51.5]} 11... c6 {[%clk 0:01:32.8]} 12. Bf4 {[%clk 0:01:51.3]} 12...
Re8 {[%clk 0:01:26.8]} 13. Qd3 {[%clk 0:01:51.5]} 13... h6 {[%clk 0:01:03.3]}
14. Raf1 {[%clk 0:01:51.2]} 14... Qe7 {[%clk 0:00:48.4]} 15. a3 {[%clk
0:01:47.4]} 15... Rad8 {[%clk 0:00:31.7]} 16. Qg3 {[%clk 0:01:47.3]} 16... Nh7
{[%clk 0:00:15.1]} 17. Bc7 {[%clk 0:01:20.1]} 17... Rc8 {[%clk 0:00:13.2]} 18.
Bd6 {[%clk 0:01:19.7]} 18... Qg5 {[%clk 0:00:13.2]} 19. Bf4 {[%clk 0:01:12.7]}
19... Qe7 {[%clk 0:00:07.6]} 20. h4 {[%clk 0:01:11]} 20... Ndf6 {[%clk 0:00:05]}
21. Bf3 {[%clk 0:01:11.6]} 21... Ne4 {[%clk 0:00:02.3]} 22. Nxe4 {[%clk
0:01:11.3]} 22... dxe4 {[%clk 0:00:02.8]} 23. Bxe4 {[%clk 0:01:12.2]} 23... Bd5
{[%clk 0:00:03]} 24. Bd3 {[%clk 0:01:08]} 24... Nf8 {[%clk 0:00:02.8]} 25. g5
{[%clk 0:01:04.6]} 25... h5 {[%clk 0:00:02]} 26. c4 {[%clk 0:00:58.8]} 26... Be4
{[%clk 0:00:01.7]} 27. Be5 {[%clk 0:00:59.3]} 27... Bxd3 {[%clk 0:00:01.7]} 28.
exd3 {[%clk 0:00:58.7]} 28... Ng6 {[%clk 0:00:02]} 29. Rxf7 {[%clk 0:00:40.8]}
29... Qxf7 {[%clk 0:00:01.6]} 30. Rxf7 {[%clk 0:00:41.7]} 30... Kxf7 {[%clk
0:00:02.2]} 31. Qf3+ {[%clk 0:00:35.3]} 31... Kg8 {[%clk 0:00:02.4]} 32. Qe4
{[%clk 0:00:36]} 32... Re6 {[%clk 0:00:02.5]} 33. Qf5 {[%clk 0:00:26.3]} 33...
Rce8 {[%clk 0:00:02.3]} 34. Bg3 {[%clk 0:00:26.3]} 34... Kh7 {[%clk 0:00:01]}
35. Qf3 {[%clk 0:00:26.1]} 35... Re3 {[%clk 0:00:01.2]} 36. Qxh5+ {[%clk
0:00:26.1]} 36... Kg8 {[%clk 0:00:02.1]} 37. Be5 {[%clk 0:00:18.1]} 37... Nxe5
{[%clk 0:00:02]} 38. Qxe8+ {[%clk 0:00:17.8]} 38... Kh7 {[%clk 0:00:02]} 39.
dxe5 {[%clk 0:00:18.7]} 1-0